[Event "Teplice Open 2019"]
[Site "Teplice"]
[Date "2019.06.19"]
[Round "5.28"]
[White "Vogel, Roven"]
[Black "Schmidt, Tommy B."]
[Result "1/2-1/2"]
[ECO "C11"]
[WhiteElo "2471"]
[BlackElo "2205"]
[Annotator "ChessBase"]
[PlyCount "86"]
[EventDate "2019.06.15"]
[EventType "swiss"]
[EventCountry "CZE"]
[SourceTitle "playchess.com"]
[Source "ChessBase"]
[SourceQuality "1"]
[TimeControl "40/5400+30:1800+30"]

1. e4 {[%emt 0:00:00]} e6 {[%emt 0:00:00]} 2. d4 {[%emt 0:00:00]} d5 {[%emt 0:00:00]} 3. Nc3 {[%emt 0:00:31]} Nf6 {[%emt 0:00:00]} 4. e5 {[%emt 0:01:19]} Nfd7 {[%emt 0:00:01]} 5. Nce2 {[%emt 0:00:19]} c5 {[%emt 0:00:18]} 6. c3 {[%emt 0:00:08]} b5 {[%emt 0:01:34]} 7. Nf3 {[%emt 0:01:40]} Nc6 {[%emt 0:02:50]} 8. Nf4 {[%emt 0:04:12]} Qb6 {[%emt 0:08:25]} 9. h4 {[%emt 0:13:02]} b4 {[%emt 0:04:10]} 10. a3 {[%emt 0:00:57]} bxc3 {[%emt 0:07:37]} 11. bxc3 {[%emt 0:00:02]} Rb8 {[%emt 0:06:43]} 12. Be2 {[%emt 0:06:47]} Ba6 {[%emt 0:07:46]} 13. O-O {[%emt 0:01:08]} Bxe2 {[%emt 0:02:39]} 14. Nxe2 {[%emt 0:02:10]} Qb3 {[%emt 0:01:57]} 15. Qd3 {[%emt 0:07:11]} Qb5 {[%emt 0:00:26]} 16. Qe3 {[%emt 0:01:25]} Qa4 {[%emt 0:18:21]} 17. Qg5 {[%emt 0:08:46]} h6 {[%emt 0:02:43]} 18. Qg3 {[%emt 0:04:46]} Qc2 {[%emt 0:04:54]} 19. Bd2 {[%emt 0:02:37]} Rb3 {[%emt 0:02:36]} 20. Rac1 {[%emt 0:05:56]} Qe4 {[%emt 0:03:37]} 21. Nf4 {[%emt 0:08:38]} c4 {[%emt 0:04:05]} 22. a4 {[%emt 0:03:19]} a5 {[%emt 0:01:29]} 23. Qg4 {[%emt 0:01:00]} Nd8 {[%emt 0:01:10]} 24. Be3 {[%emt 0:04:36]} Qh7 {[%emt 0:01:04]} 25. Nd2 {[%emt 0:02:20]} Ra3 {[%emt 0:03:31]} 26. Qf3 {[%emt 0:01:00]} Nb6 {[%emt 0:01:15]} 27. Rb1 {[%emt 0:04:15]} Nxa4 {[%emt 0:01:38]} 28. Nxc4 {[%emt 0:00:08]} Rxc3 {[%emt 0:01:09]} 29. Nxa5 {[%emt 0:01:59]} Be7 {[%emt 0:01:11]} 30. Qd1 {[%emt 0:09:06]} Ra3 {[%emt 0:02:49]} 31. Bd2 {[%emt 0:01:30]} O-O {[%emt 0:00:51]} 32. Rb3 {[%emt 0:01:54]} Ra2 {[%emt 0:01:01]} 33. Nd3 {[%emt 0:01:58]} Qe4 {[%emt 0:01:15]} 34. Nc1 {[%emt 0:01:11]} Ra1 {[%emt 0:03:52]} 35. Rg3 {[%emt 0:00:43]} Kh7 {[%emt 0:00:48]} 36. Rg4 {[%emt 0:00:50]} Nb2 {[%emt 0:02:33]} 37. Rxe4 {[%emt 0:00:13]} Nxd1 {[%emt 0:00:04]} 38. Re2 {[%emt 0:00:27]} Nb2 {[%emt 0:01:00]} 39. Bc3 {[%emt 0:00:54]} Ra3 {[%emt 0:00:25]} 40. Rxb2 {[%emt 0:00:25]} Rxc3 {[%emt 0:00:11]} 41. g3 {[%emt 0:00:19]} Ba3 {[%emt 0:11:24]} 42. Rb3 {[%emt 0:01:13]} Rxc1 {[%emt 0:00:59]} 43. Rxa3 {[%emt 0:00:01]} Rc2 {[%emt 0:00:19]} 1/2-1/2

[Event "Teplice Open 2019"]
[Site "Teplice"]
[Date "2019.06.19"]
[Round "5.29"]
[White "Abdumalik, Zhansaya"]
[Black "Lorscheid, Gerhard"]
[Result "1/2-1/2"]
[ECO "B09"]
[WhiteElo "2464"]
[BlackElo "2214"]
[Annotator "ChessBase"]
[PlyCount "83"]
[EventDate "2019.06.15"]
[EventType "swiss"]
[EventCountry "CZE"]
[SourceTitle "playchess.com"]
[Source "ChessBase"]
[SourceQuality "1"]
[TimeControl "40/5400+30:1800+30"]

1. e4 {[%emt 0:00:00]} d6 {[%emt 0:02:11]} 2. d4 {[%emt 0:00:00]} Nf6 {[%emt 0:00:05]} 3. Nc3 {[%emt 0:00:00]} g6 {[%emt 0:00:13]} 4. f4 {[%emt 0:00:00]} Bg7 {[%emt 0:00:11]} 5. Nf3 {[%emt 0:00:32]} O-O {[%emt 0:00:07]} 6. Bd3 {[%emt 0:00:52]} Na6 {[%emt 0:00:08]} 7. O-O {[%emt 0:00:26]} c5 {[%emt 0:00:06]} 8. d5 {[%emt 0:00:04]} Rb8 {[%emt 0:00:10]} 9. a4 {[%emt 0:02:19]} Nb4 {[%emt 0:02:30]} 10. Bc4 {[%emt 0:02:33]} a6 {[%emt 0:08:27]} 11. a5 {[%emt 0:01:34]} b5 {[%emt 0:00:21]} 12. axb6 {[%emt 0:01:27]} Nd7 {[%emt 0:05:11]} 13. Na4 {[%emt 0:10:04]} a5 {[%emt 0:00:32]} 14. c3 {[%emt 0:05:12]} Na6 {[%emt 0:00:13]} 15. Qe2 {[%emt 0:00:51]} Ra8 {[%emt 0:00:15]} 16. f5 {[%emt 0:06:38]} Nab8 {[%emt 0:11:11]} 17. Qf2 {[%emt 0:08:27]} Nf6 {[%emt 0:13:33]} 18. Qh4 {[%emt 0:04:05]} gxf5 {[%emt 0:00:28]} 19. Bh6 {[%emt 0:12:06]} Nxe4 {[%emt 0:06:33]} 20. b7 {[%emt 0:11:46]} Bxb7 {[%emt 0:00:06]} 21. Bxg7 {[%emt 0:03:28]} Kxg7 {[%emt 0:00:10]} 22. Ng5 {[%emt 0:00:23]} Nxg5 {[%emt 0:03:54]} 23. Qxg5+ {[%emt 0:00:04]} Kh8 {[%emt 0:00:05]} 24. Rxf5 {[%emt 0:02:44]} Ba6 {[%emt 0:02:26]} 25. Bxa6 {[%emt 0:05:47]} Rxa6 {[%emt 0:00:39]} 26. Qe3 {[%emt 0:01:39]} Ra7 {[%emt 0:02:58]} 27. b3 {[%emt 0:01:43]} Nd7 {[%emt 0:01:48]} 28. c4 {[%emt 0:01:06]} f6 {[%emt 0:00:55]} 29. Raf1 {[%emt 0:01:49]} Rg8 {[%emt 0:00:33]} 30. Nc3 {[%emt 0:03:14]} Ne5 {[%emt 0:00:37]} 31. Rh5 {[%emt 0:01:28]} Rg7 {[%emt 0:02:51]} 32. Ra1 {[%emt 0:01:50]} Qd7 {[%emt 0:00:46]} 33. h3 {[%emt 0:02:28]} Qe8 {[%emt 0:01:05]} 34. Rh6 {[%emt 0:04:16]} Qd7 {[%emt 0:01:18]} 35. Rh5 {[%emt 0:01:01]} Qe8 {[%emt 0:00:06]} 36. Rh6 {[%emt 0:00:03]} Qd7 {[%emt 0:00:49]} 37. Qe4 {[%emt 0:02:10]} Ra8 {[%emt 0:02:17]} 38. Ra2 {[%emt 0:00:41]} Nf7 {[%emt 0:04:35]} 39. Rh4 {[%emt 0:00:50]} Ng5 {[%emt 0:01:06]} 40. Qd3 {[%emt 0:00:31]} Nf7 {[%emt 0:00:54]} 41. Kh2 {[%emt 0:31:51]} Ne5 {[%emt 0:30:31]} 42. Qe4 {[%emt 0:01:21]} 1/2-1/2

[Event "Teplice Open 2019"]
[Site "Teplice"]
[Date "2019.06.19"]
[Round "5.30"]
[White "Horak, Jiri"]
[Black "Ankit, R. Rajpara"]
[Result "0-1"]
[ECO "A47"]
[WhiteElo "2226"]
[BlackElo "2447"]
[Annotator "NA"]
[PlyCount "46"]
[EventDate "2019.06.15"]
[EventType "swiss"]
[EventCountry "CZE"]
[SourceTitle "playchess.com"]
[Source "ChessBase"]
[SourceQuality "1"]
[TimeControl "40/5400+30:1800+30"]

1. d4 {[%emt 0:38:41]} Nf6 {[%emt 0:00:09]} 2. Nf3 {[%emt 0:00:53]} b6 {[%emt 0:00:38]} 3. g3 {[%emt 0:00:05]} Bb7 {[%emt 0:00:25]} 4. Bg2 {[%emt 0:00:05]} c5 {[%emt 0:00:32]} 5. c3 {[%emt 0:00:32]} e6 {[%emt 0:00:36]} 6. O-O {[%emt 0:00:06]} Be7 {[%emt 0:00:30]} 7. b3 {[%emt 0:01:36]} O-O {[%emt 0:00:45]} 8. Bb2 {[%emt 0:01:56]} d5 {[%emt 0:02:05]} 9. Ne5 {[%emt 0:00:56]} Nc6 {[%emt 0:01:24]} 10. Nxc6 {[%emt 0:00:53]} Bxc6 {[%emt 0:00:09]} 11. c4 {[%emt 0:01:57]} Rc8 {[%emt 0:01:42]} 12. dxc5 {[%emt 0:03:14]} dxc4 {[%emt 0:04:35]} 13. cxb6 {[%emt 0:04:30]} Qxb6 {[%emt 0:03:29]} 14. Qd4 {[%emt 0:08:44]} Bxg2 {[%emt 0:06:03]} 15. Kxg2 {[%emt 0:07:54]} cxb3 {[%emt 0:19:04]} 16. Qxb6 {[%emt 0:10:01]} axb6 {[%emt 0:00:07]} 17. axb3 {[%emt 0:00:04]} Rc2 {[%emt 0:00:23]} 18. Bd4 {[%emt 0:00:14]} Rxe2 {[%emt 0:02:24]} 19. Ra7 {[%emt 0:10:30]} Bc5 {[%emt 0:03:07]} 20. Bxc5 {[%emt 0:02:17]} bxc5 {[%emt 0:00:06]} 21. Rc7 {[%emt 0:00:26]} Rc2 {[%emt 0:02:40]} 22. b4 {[%emt 0:02:51]} Nd5 {[%emt 0:00:21]} 23. Rxc5 {[%emt 0:03:00]} Ne3+ {[%emt 0:00:08]} 0-1

[Event "Teplice Open 2019"]
[Site "Teplice"]
[Date "2019.06.19"]
[Round "5.31"]
[White "Erenberg, Ariel"]
[Black "Kucera, Petr"]
[Result "1-0"]
[ECO "A55"]
[WhiteElo "2434"]
[BlackElo "2175"]
[Annotator "ChessBase"]
[PlyCount "117"]
[EventDate "2019.06.15"]
[EventType "swiss"]
[EventCountry "CZE"]
[SourceTitle "playchess.com"]
[Source "ChessBase"]
[SourceQuality "1"]
[TimeControl "40/5400+30:1800+30"]

1. d4 {[%emt 0:00:00]} Nf6 {[%emt 0:03:18]} 2. c4 {[%emt 0:00:00]} d6 {[%emt 0:00:20]} 3. Nc3 {[%emt 0:01:31]} Nbd7 {[%emt 0:00:49]} 4. g3 {[%emt 0:06:23]} e5 {[%emt 0:02:38]} 5. Nf3 {[%emt 0:00:07]} Be7 {[%emt 0:00:45]} 6. Bg2 {[%emt 0:00:44]} O-O {[%emt 0:00:39]} 7. O-O {[%emt 0:00:07]} c6 {[%emt 0:01:36]} 8. e4 {[%emt 0:06:57]} Qc7 {[%emt 0:05:50]} 9. h3 {[%emt 0:03:23]} a6 {[%emt 0:00:51]} 10. Be3 {[%emt 0:04:20]} b5 {[%emt 0:06:21]} 11. Qc2 {[%emt 0:14:23]} Bb7 {[%emt 0:13:00]} 12. Rad1 {[%emt 0:09:53]} Rfe8 {[%emt 0:09:35]} 13. a3 {[%emt 0:05:17]} a5 {[%emt 0:13:53]} 14. Rfe1 {[%emt 0:03:01]} bxc4 {[%emt 0:11:04]} 15. dxe5 {[%emt 0:01:21]} dxe5 {[%emt 0:00:38]} 16. Na4 {[%emt 0:01:24]} Ba6 {[%emt 0:03:41]} 17. Nd2 {[%emt 0:01:07]} c3 {[%emt 0:09:29]} 18. Qxc3 {[%emt 0:03:19]} Bb5 {[%emt 0:01:27]} 19. Qc2 {[%emt 0:00:23]} Rab8 {[%emt 0:06:58]} 20. Nc4 {[%emt 0:04:02]} Bxa4 {[%emt 0:03:54]} 21. Qxa4 {[%emt 0:00:04]} Nc5 {[%emt 0:01:04]} 22. Qxa5 {[%emt 0:02:31]} Qxa5 {[%emt 0:00:06]} 23. Nxa5 {[%emt 0:00:04]} Rxb2 {[%emt 0:00:15]} 24. Nxc6 {[%emt 0:05:17]} Bf8 {[%emt 0:00:37]} 25. Nxe5 {[%emt 0:04:45]} Ra2 {[%emt 0:00:47]} 26. Bxc5 {[%emt 0:08:48]} Bxc5 {[%emt 0:00:19]} 27. Nd3 {[%emt 0:00:04]} Ba7 {[%emt 0:02:02]} 28. e5 {[%emt 0:01:25]} Nh5 {[%emt 0:00:19]} 29. Bd5 {[%emt 0:01:10]} Rxa3 {[%emt 0:00:45]} 30. g4 {[%emt 0:00:27]} Rxd3 {[%emt 0:01:04]} 31. Rxd3 {[%emt 0:00:17]} Nf4 {[%emt 0:00:10]} 32. Rd2 {[%emt 0:03:55]} Nxh3+ {[%emt 0:00:34]} 33. Kf1 {[%emt 0:02:36]} Bb8 {[%emt 0:00:57]} 34. e6 {[%emt 0:04:11]} fxe6 {[%emt 0:00:18]} 35. Rxe6 {[%emt 0:00:17]} Kf8 {[%emt 0:00:13]} 36. Rb6 {[%emt 0:02:29]} Ng5 {[%emt 0:01:03]} 37. Rb7 {[%emt 0:01:18]} Rd8 {[%emt 0:00:31]} 38. Rd3 {[%emt 0:00:27]} Be5 {[%emt 0:00:34]} 39. Bc4 {[%emt 0:00:54]} Rc8 {[%emt 0:00:32]} 40. Rd5 {[%emt 0:00:28]} Bf6 {[%emt 0:00:26]} 41. Rdd7 {[%emt 0:00:44]} Ke8 {[%emt 0:06:36]} 42. Bb5 {[%emt 0:06:46]} Kf8 {[%emt 0:00:16]} 43. Bd3 {[%emt 0:04:33]} h6 {[%emt 0:02:41]} 44. Bf5 {[%emt 0:01:22]} Ra8 {[%emt 0:02:31]} 45. Kg2 {[%emt 0:01:56]} Kg8 {[%emt 0:01:21]} 46. f4 {[%emt 0:00:36]} Nh7 {[%emt 0:00:55]} 47. Rdc7 {[%emt 0:02:11]} Nf8 {[%emt 0:04:36]} 48. Rc8 {[%emt 0:00:13]} Rxc8 {[%emt 0:04:22]} 49. Bxc8 {[%emt 0:00:04]} Bd4 {[%emt 0:07:09]} 50. Kf3 {[%emt 0:01:42]} Bc5 {[%emt 0:00:39]} 51. Ke4 {[%emt 0:01:00]} Bd6 {[%emt 0:00:20]} 52. f5 {[%emt 0:10:52]} Bc5 {[%emt 0:02:39]} 53. Kd5 {[%emt 0:00:19]} Ba3 {[%emt 0:00:27]} 54. Be6+ {[%emt 0:00:06]} Kh8 {[%emt 0:00:35]} 55. Kc6 {[%emt 0:00:14]} Nh7 {[%emt 0:02:15]} 56. Rb3 {[%emt 0:01:21]} Be7 {[%emt 0:00:43]} 57. Kd7 {[%emt 0:00:11]} Bc5 {[%emt 0:00:17]} 58. Rb8+ {[%emt 0:00:17]} Nf8+ {[%emt 0:00:24]} 59. Ke8 {[%emt 0:00:06]} 1-0

[Event "Teplice Open 2019"]
[Site "Teplice"]
[Date "2019.06.19"]
[Round "5.32"]
[White "Cawdery, Daniel"]
[Black "Balinski, Damian"]
[Result "1-0"]
[ECO "B09"]
[WhiteElo "2428"]
[BlackElo "2170"]
[Annotator "NA"]
[PlyCount "81"]
[EventDate "2019.06.15"]
[EventType "swiss"]
[EventCountry "CZE"]
[SourceTitle "playchess.com"]
[Source "ChessBase"]
[SourceQuality "1"]
[TimeControl "40/5400+30:1800+30"]

1. e4 {[%emt 0:00:00]} d6 {[%emt 0:00:00]} 2. d4 {[%emt 0:00:00]} Nf6 {[%emt 0:00:00]} 3. Nc3 {[%emt 0:00:00]} g6 {[%emt 0:00:00]} 4. f4 {[%emt 0:00:23]} Bg7 {[%emt 0:00:00]} 5. Nf3 {[%emt 0:00:06]} O-O {[%emt 0:00:00]} 6. Bd3 {[%emt 0:00:49]} Nc6 {[%emt 0:00:18]} 7. e5 {[%emt 0:01:14]} dxe5 {[%emt 0:00:17]} 8. fxe5 {[%emt 0:00:07]} Nh5 {[%emt 0:00:14]} 9. Be3 {[%emt 0:08:08]} f6 {[%emt 0:00:06]} 10. Qe2 {[%emt 0:12:17]} fxe5 {[%emt 0:09:41]} 11. dxe5 {[%emt 0:01:43]} Bg4 {[%emt 0:10:34]} 12. O-O-O {[%emt 0:00:23]} Qc8 {[%emt 0:03:00]} 13. Nd5 {[%emt 0:10:50]} e6 {[%emt 0:14:37]} 14. Nf6+ {[%emt 0:02:01]} Nxf6 {[%emt 0:00:04]} 15. exf6 {[%emt 0:00:05]} Bxf6 {[%emt 0:00:23]} 16. h3 {[%emt 0:07:12]} Bxf3 {[%emt 0:12:56]} 17. gxf3 {[%emt 0:00:10]} Ne5 {[%emt 0:00:21]} 18. Be4 {[%emt 0:01:57]} Qe8 {[%emt 0:07:42]} 19. Bd4 {[%emt 0:15:50]} Qa4 {[%emt 0:04:55]} 20. Kb1 {[%emt 0:00:27]} Qc4 {[%emt 0:08:33]} 21. Qe3 {[%emt 0:02:38]} Qb5 {[%emt 0:08:34]} 22. Bd3 {[%emt 0:02:10]} Qd5 {[%emt 0:00:12]} 23. Be4 {[%emt 0:01:05]} Qb5 {[%emt 0:00:02]} 24. Rhe1 {[%emt 0:02:28]} c5 {[%emt 0:01:34]} 25. Bxe5 {[%emt 0:02:18]} Bxe5 {[%emt 0:00:01]} 26. c3 {[%emt 0:00:15]} Bf4 {[%emt 0:01:48]} 27. Qg1 {[%emt 0:01:34]} Kg7 {[%emt 0:05:15]} 28. Bd3 {[%emt 0:01:29]} c4 {[%emt 0:01:11]} 29. Bc2 {[%emt 0:03:51]} e5 {[%emt 0:01:36]} 30. Rd6 {[%emt 0:00:47]} Rad8 {[%emt 0:00:46]} 31. Rxg6+ {[%emt 0:00:11]} Kh8 {[%emt 0:00:28]} 32. Rg7 {[%emt 0:01:23]} Rd7 {[%emt 0:00:18]} 33. Rxd7 {[%emt 0:01:44]} Qxd7 {[%emt 0:00:02]} 34. Qc5 {[%emt 0:02:12]} Rc8 {[%emt 0:01:24]} 35. Qxa7 {[%emt 0:00:14]} Rd8 {[%emt 0:01:25]} 36. a3 {[%emt 0:05:19]} Qc7 {[%emt 0:02:49]} 37. Be4 {[%emt 0:04:53]} Bd2 {[%emt 0:05:12]} 38. Rg1 {[%emt 0:00:00]} Rb8 {[%emt 0:01:38]} 39. Rd1 {[%emt 0:00:00]} Bf4 {[%emt 0:00:20]} 40. Rd7 {[%emt 0:00:00]} Qxd7 {[%emt 0:01:09]} 41. Qxb7 {[%emt 0:25:54]} 1-0

[Event "Teplice Open 2019"]
[Site "Teplice"]
[Date "2019.06.19"]
[Round "5.33"]
[White "Hollan, Martin"]
[Black "Sikora, Jan"]
[Result "1-0"]
[ECO "E14"]
[WhiteElo "2423"]
[BlackElo "2170"]
[Annotator "NA"]
[PlyCount "78"]
[EventDate "2019.06.15"]
[EventType "swiss"]
[EventCountry "CZE"]
[SourceTitle "playchess.com"]
[Source "ChessBase"]
[SourceQuality "1"]
[TimeControl "40/5400+30:1800+30"]

1. d4 {[%emt 0:00:00]} Nf6 {[%emt 0:00:00]} 2. c4 {[%emt 0:00:00]} e6 {[%emt 0:00:44]} 3. Nf3 {[%emt 0:00:00]} Bb4+ {[%emt 0:02:34]} 4. Nbd2 {[%emt 0:00:00]} O-O {[%emt 0:04:26]} 5. a3 {[%emt 0:00:00]} Bxd2+ {[%emt 0:00:19]} 6. Qxd2 {[%emt 0:00:06]} a5 {[%emt 0:06:13]} 7. b3 {[%emt 0:00:19]} d6 {[%emt 0:03:24]} 8. Bb2 {[%emt 0:01:43]} Nbd7 {[%emt 0:03:09]} 9. e3 {[%emt 0:00:45]} b6 {[%emt 0:05:10]} 10. Be2 {[%emt 0:00:23]} Bb7 {[%emt 0:00:36]} 11. O-O {[%emt 0:00:13]} Qe7 {[%emt 0:05:16]} 12. Rfd1 {[%emt 0:11:28]} Ne4 {[%emt 0:06:44]} 13. Qc2 {[%emt 0:01:54]} f5 {[%emt 0:02:54]} 14. d5 {[%emt 0:00:36]} e5 {[%emt 0:03:00]} 15. Nd2 {[%emt 0:01:32]} Ndf6 {[%emt 0:09:18]} 16. f3 {[%emt 0:04:15]} Nxd2 {[%emt 0:00:42]} 17. Qxd2 {[%emt 0:00:38]} Bc8 {[%emt 0:08:27]} 18. b4 {[%emt 0:01:04]} axb4 {[%emt 0:00:29]} 19. axb4 {[%emt 0:00:05]} Bb7 {[%emt 0:00:35]} 20. Qc2 {[%emt 0:03:26]} g6 {[%emt 0:08:18]} 21. c5 {[%emt 0:06:14]} bxc5 {[%emt 0:02:37]} 22. bxc5 {[%emt 0:00:11]} Rxa1 {[%emt 0:00:23]} 23. Bxa1 {[%emt 0:03:32]} Bxd5 {[%emt 0:04:15]} 24. cxd6 {[%emt 0:18:54]} Qxd6 {[%emt 0:01:43]} 25. f4 {[%emt 0:05:30]} Qb6 {[%emt 0:02:40]} 26. Qc1 {[%emt 0:03:42]} c6 {[%emt 0:00:48]} 27. fxe5 {[%emt 0:02:04]} Ne4 {[%emt 0:00:48]} 28. e6 {[%emt 0:18:57]} Bxe6 {[%emt 0:06:26]} 29. Bc4 {[%emt 0:00:17]} Bf7 {[%emt 0:00:06]} 30. Rd7 {[%emt 0:01:37]} Qc5 {[%emt 0:01:05]} 31. Bd4 {[%emt 0:02:23]} Qb4 {[%emt 0:01:24]} 32. Qa1 {[%emt 0:03:51]} Qxc4 {[%emt 0:06:14]} 33. Bh8 {[%emt 0:00:05]} Nc3 {[%emt 0:02:44]} 34. Bxc3 {[%emt 0:00:04]} Rb8 {[%emt 0:02:47]} 35. Bh8 {[%emt 0:01:25]} Rb1+ {[%emt 0:00:02]} 36. Qxb1 {[%emt 0:00:08]} Kxh8 {[%emt 0:00:03]} 37. Qb2+ {[%emt 0:00:14]} Kg8 {[%emt 0:00:13]} 38. Rd8+ {[%emt 0:00:05]} Be8 {[%emt 0:00:14]} 39. Rxe8+ {[%emt 0:00:05]} Kf7 {[%emt 0:00:02]} 1-0

[Event "Teplice Open 2019"]
[Site "Teplice"]
[Date "2019.06.19"]
[Round "5.34"]
[White "Handler, Lukas"]
[Black "Ivanov, Igor"]
[Result "0-1"]
[ECO "A21"]
[WhiteElo "2418"]
[BlackElo "2157"]
[Annotator "NA"]
[PlyCount "120"]
[EventDate "2019.06.15"]
[EventType "swiss"]
[EventCountry "CZE"]
[SourceTitle "playchess.com"]
[Source "ChessBase"]
[SourceQuality "1"]
[TimeControl "40/5400+30:1800+30"]

1. d4 {[%emt 0:00:00]} g6 {[%emt 0:00:00]} 2. c4 {[%emt 0:00:00]} Bg7 {[%emt 0:00:07]} 3. Nc3 {[%emt 0:01:00]} d6 {[%emt 0:00:05]} 4. Nf3 {[%emt 0:00:30]} e5 {[%emt 0:00:55]} 5. g3 {[%emt 0:01:35]} exd4 {[%emt 0:02:55]} 6. Nxd4 {[%emt 0:00:11]} Ne7 {[%emt 0:01:39]} 7. Bg2 {[%emt 0:01:02]} Nbc6 {[%emt 0:00:54]} 8. Nxc6 {[%emt 0:10:16]} Nxc6 {[%emt 0:01:00]} 9. c5 {[%emt 0:02:04]} Nd4 {[%emt 0:14:42]} 10. Bh6 {[%emt 0:14:49]} Bxh6 {[%emt 0:07:32]} 11. Qxd4 {[%emt 0:00:06]} O-O {[%emt 0:00:09]} 12. cxd6 {[%emt 0:00:22]} Bg7 {[%emt 0:01:09]} 13. Qb4 {[%emt 0:05:17]} a5 {[%emt 0:10:14]} 14. Qa3 {[%emt 0:01:21]} Qxd6 {[%emt 0:03:36]} 15. Qxd6 {[%emt 0:00:50]} Bxc3+ {[%emt 0:00:17]} 16. bxc3 {[%emt 0:01:35]} cxd6 {[%emt 0:00:04]} 17. Rb1 {[%emt 0:04:01]} Be6 {[%emt 0:05:28]} 18. a3 {[%emt 0:01:32]} Rab8 {[%emt 0:23:30]} 19. Rb6 {[%emt 0:04:19]} Rfc8 {[%emt 0:01:11]} 20. Kd2 {[%emt 0:01:01]} Rc4 {[%emt 0:00:06]} 21. Rc1 {[%emt 0:11:07]} Ra4 {[%emt 0:03:52]} 22. Ra1 {[%emt 0:00:54]} d5 {[%emt 0:01:34]} 23. e3 {[%emt 0:01:21]} Rc4 {[%emt 0:02:04]} 24. Bf1 {[%emt 0:02:12]} Rc7 {[%emt 0:04:55]} 25. Ba6 {[%emt 0:05:58]} Bf5 {[%emt 0:04:24]} 26. Ra2 {[%emt 0:01:22]} Bd7 {[%emt 0:00:05]} 27. Rab2 {[%emt 0:01:16]} Bc6 {[%emt 0:00:09]} 28. Bb5 {[%emt 0:03:09]} Bxb5 {[%emt 0:01:20]} 29. R6xb5 {[%emt 0:01:55]} Rbc8 {[%emt 0:00:29]} 30. Rc2 {[%emt 0:05:23]} Rc5 {[%emt 0:02:23]} 31. Rxb7 {[%emt 0:00:17]} Kg7 {[%emt 0:00:20]} 32. h4 {[%emt 0:02:22]} h5 {[%emt 0:00:13]} 33. Rb3 {[%emt 0:03:02]} Kf6 {[%emt 0:01:47]} 34. Rcb2 {[%emt 0:02:11]} Kf5 {[%emt 0:01:03]} 35. f3 {[%emt 0:03:04]} f6 {[%emt 0:01:21]} 36. Rb5 {[%emt 0:00:40]} g5 {[%emt 0:00:21]} 37. Rxc5 {[%emt 0:02:54]} Rxc5 {[%emt 0:00:02]} 38. Kd3 {[%emt 0:00:20]} gxh4 {[%emt 0:01:35]} 39. gxh4 {[%emt 0:00:10]} Ke5 {[%emt 0:02:49]} 40. Rb8 {[%emt 0:04:27]} Kf5 {[%emt 0:02:01]} 41. a4 {[%emt 0:32:55]} Ke6 {[%emt 0:03:27]} 42. Rb6+ {[%emt 0:00:00]} Kf7 {[%emt 0:01:20]} 43. Rb5 {[%emt 0:00:00]} Rc4 {[%emt 0:00:36]} 44. Rxa5 {[%emt 0:00:00]} Rxh4 {[%emt 0:00:16]} 45. Rxd5 {[%emt 0:00:00]} Kg6 {[%emt 0:00:27]} 46. c4 {[%emt 0:00:00]} Rh1 {[%emt 0:00:15]} 47. a5 {[%emt 0:00:00]} h4 {[%emt 0:02:45]} 48. Kc3 {[%emt 0:01:15]} h3 {[%emt 0:01:22]} 49. Kb2 {[%emt 0:01:10]} Rg1 {[%emt 0:01:24]} 50. Rd8 {[%emt 0:02:06]} h2 {[%emt 0:04:13]} 51. Rh8 {[%emt 0:00:04]} h1=Q {[%emt 0:00:02]} 52. Rxh1 {[%emt 0:00:06]} Rxh1 {[%emt 0:00:02]} 53. Kb3 {[%emt 0:00:13]} Kf5 {[%emt 0:00:46]} 54. Kb4 {[%emt 0:00:08]} Ke6 {[%emt 0:00:51]} 55. Kb5 {[%emt 0:00:22]} Kd6 {[%emt 0:02:04]} 56. Kb6 {[%emt 0:00:20]} Rb1+ {[%emt 0:00:14]} 57. Ka7 {[%emt 0:00:02]} Kc7 {[%emt 0:00:14]} 58. a6 {[%emt 0:00:06]} Rc1 {[%emt 0:00:26]} 59. Ka8 {[%emt 0:00:11]} Rxc4 {[%emt 0:00:06]} 60. a7 {[%emt 0:00:04]} Rh4 {[%emt 0:00:04]} 0-1

[Event "Teplice Open 2019"]
[Site "Teplice"]
[Date "2019.06.19"]
[Round "5.35"]
[White "Richterova, Natasa"]
[Black "Mikes, Jan"]
[Result "0-1"]
[ECO "E92"]
[WhiteElo "2190"]
[BlackElo "2404"]
[Annotator "NA"]
[PlyCount "70"]
[EventDate "2019.06.15"]
[EventType "swiss"]
[EventCountry "CZE"]
[SourceTitle "playchess.com"]
[Source "ChessBase"]
[SourceQuality "1"]
[TimeControl "40/5400+30:1800+30"]

1. d4 {[%emt 0:00:00]} Nf6 {[%emt 0:00:00]} 2. c4 {[%emt 0:00:00]} g6 {[%emt 0:00:00]} 3. Nc3 {[%emt 0:00:00]} Bg7 {[%emt 0:00:00]} 4. e4 {[%emt 0:00:00]} d6 {[%emt 0:00:00]} 5. Nf3 {[%emt 0:00:15]} O-O {[%emt 0:00:00]} 6. Be2 {[%emt 0:00:04]} e5 {[%emt 0:00:06]} 7. dxe5 {[%emt 0:00:17]} dxe5 {[%emt 0:00:06]} 8. Qxd8 {[%emt 0:00:05]} Rxd8 {[%emt 0:00:04]} 9. Bg5 {[%emt 0:00:07]} c6 {[%emt 0:00:38]} 10. Nxe5 {[%emt 0:02:58]} Re8 {[%emt 0:00:35]} 11. O-O-O {[%emt 0:00:56]} Na6 {[%emt 0:01:06]} 12. Bf4 {[%emt 0:44:36]} Nc5 {[%emt 0:03:56]} 13. Bf3 {[%emt 0:04:16]} g5 {[%emt 0:21:13]} 14. Be3 {[%emt 0:08:15]} Rxe5 {[%emt 0:02:37]} 15. Rd8+ {[%emt 0:03:13]} Bf8 {[%emt 0:00:18]} 16. Bd4 {[%emt 0:00:20]} Ncd7 {[%emt 0:01:35]} 17. Bxe5 {[%emt 0:00:52]} Nxe5 {[%emt 0:00:05]} 18. h4 {[%emt 0:02:13]} gxh4 {[%emt 0:26:50]} 19. Be2 {[%emt 0:05:38]} Ng6 {[%emt 0:00:29]} 20. e5 {[%emt 0:17:33]} Nxe5 {[%emt 0:00:12]} 21. f4 {[%emt 0:04:33]} Ng6 {[%emt 0:14:29]} 22. f5 {[%emt 0:00:03]} Ne7 {[%emt 0:00:24]} 23. Rxh4 {[%emt 0:03:19]} Kg7 {[%emt 0:01:28]} 24. g4 {[%emt 0:01:03]} h6 {[%emt 0:00:04]} 25. Bf3 {[%emt 0:00:48]} Neg8 {[%emt 0:00:27]} 26. Rh1 {[%emt 0:00:41]} Be7 {[%emt 0:00:13]} 27. Rdd1 {[%emt 0:00:10]} Bd7 {[%emt 0:04:08]} 28. Rd3 {[%emt 0:00:20]} Rb8 {[%emt 0:00:44]} 29. Rhd1 {[%emt 0:00:25]} Be8 {[%emt 0:00:05]} 30. Ne2 {[%emt 0:01:09]} b5 {[%emt 0:00:08]} 31. cxb5 {[%emt 0:00:14]} cxb5 {[%emt 0:00:13]} 32. Nd4 {[%emt 0:00:16]} b4 {[%emt 0:00:27]} 33. Bc6 {[%emt 0:01:09]} Rc8 {[%emt 0:00:15]} 34. Kb1 {[%emt 0:00:27]} Bxc6 {[%emt 0:00:13]} 35. Nxc6 {[%emt 0:00:05]} Rxc6 {[%emt 0:00:04]} 0-1